Cogmind - Beta 14 --- EXPLORER MODE // 2024.08.11 @ 09:32:23 // Winter2019/RPGLIKE Player: Haldron Result: Escaped! Performance ------------- Evolutions (9) 4500 Regions Visited (24) 4800 Robots Destroyed (684) 3420 Value Destroyed (32901) 32901 Prototype IDs (84) 1680 Alien Tech Used (0) 0 Bonus (22386) 22386 TOTAL SCORE: 69687 Bonus ------- High Alert Combat Kills 3759 Follower Combat Kills 2082 Network Hubs Disabled 600 Aligned with FarCom 300 Met Warlord at Base 500 MAIN.C Attacked Warlord 500 Warlord Defense Kills 11356 Built Enhanced Grunts 300 A7 Reached Mainframe 300 Met R17 at Cetus 500 Met R17 at Research 2000 Met Warlord at Research 2000 Win 3000 Friendly Fire -4811 Cogmind --------- Core Integrity 1000/1000 Matter 390/400 Energy 1676/1700 System Corruption 0% Temperature Cool (12) Movement Treading (135) Location To Epsilon Eridani Parts ------- > --- POWER (3) -------- Hybrid Antimatter Reactor Vortex Chain Reactor > --- PROPULSION (6) --- Experimental Biometal Heavy Treads Experimental Biometal Heavy Treads Experimental Biometal Heavy Treads > --- UTILITY (11) ----- Advanced Terrain Scanner Improved Armor Integrity Analyzer Advanced Particle Charger Advanced Particle Charger Heavy Servo Lattice Advanced Weapon Cycler Centrium Medium Armor Plating Improved Powered Armor Graphene Brace Advanced Force Field Advanced Dynamic Insulation System > --- WEAPON (6) ------- Cooled Phase Cannon Cooled Phase Cannon Cooled Phase Cannon Cooled Phase Cannon Cooled Phase Cannon Improved Plasma Cutter > --- INVENTORY (8) ---- Advanced Trap Scanner Experimental Cloaking Device Experimental Thermal Shield Improved System Restoration Module Trap Reconfigurator Mini Drone Bay (3/3) Cooled Phase Cannon Point Singularity Launcher Peak State ------------ > --- POWER ------------ Hybrid Antimatter Reactor Vortex Chain Reactor > --- PROPULSION ------- Experimental Biometal Heavy Treads Experimental Biometal Heavy Treads Experimental Biometal Heavy Treads > --- UTILITY ---------- Advanced Terrain Scanner Improved Armor Integrity Analyzer Advanced Particle Charger Heavy Servo Lattice Advanced Weapon Cycler Experimental Cloaking Device Centrium Medium Armor Plating Improved Powered Armor Advanced Force Field Advanced Dynamic Insulation System Mini Drone Bay > --- WEAPON ----------- Cooled Phase Cannon Cooled Phase Cannon Cooled Phase Cannon Cooled Phase Cannon Cooled Phase Cannon Cooled Phase Cannon > --- INVENTORY -------- Advanced Trap Scanner Advanced Particle Charger Graphene Brace Experimental Thermal Shield Improved System Restoration Module Trap Reconfigurator Point Singularity Launcher Improved Plasma Cutter [Rating: 222] Favorites ----------- Power Hybrid Deuterium Engine Engine Hybrid Deuterium Engine Power Core Nuclear Core Reactor Quantum Reactor Propulsion Experimental Biometal Heavy Treads Treads Experimental Biometal Heavy Treads Leg Light Armored Exoskeleton Wheel Armored Wheel Hover Unit Aerolev Unit Utility Armor Integrity Analyzer Device Energy Filter Storage High-capacity Battery Processor Armor Integrity Analyzer Hackware Authchip [R/NC] Protection Powered Armor Weapon Cooled Plasma Cannon Energy Gun Heavy EM Pulse Gun Energy Cannon Cooled Plasma Cannon Ballistic Gun Gauss Rifle Ballistic Cannon Mini Assault Cannon Launcher Point Singularity Launcher Special Weapon Plasma Cutter Impact Weapon Impact Mace Build | -11 -10 -10 -10 -9 -8 -7 -7 -7 -7 -5 -5 -5 -5 -5 -5 -5 -4 -4 -4 -4 -3 -3 -2 -1 ------- Run | Yrd Mat Min Exi Min Mat Fac Sto Rec Scr Fac Was Fac Ext Cet Arc Hub Fac Upp Upp War Pro Res Res Acc Slots Evolved 22 | 3 1 2 . . 5 2 1 . . 4 . . 1 . . . 2 . . . . . . 1 Power 2 | . . . . . 1 . . . . . . . . . . . 1 . . . . . . . Propulsion 5 | 1 . . . . 2 . . . . 2 . . . . . . . . . . . . . . Utility 10 | 1 . 2 . . 1 2 1 . . 1 . . 1 . . . . . . . . . . 1 Weapon 5 | 1 1 . . . 1 . . . . 1 . . . . . . 1 . . . . . . . Parts Attached 307 | 7 7 3 . 3 53 51 33 . 1 41 1 20 7 3 1 1 38 1 1 11 2 7 6 9 Power 16 | 1 . 1 . . 2 2 . . . 3 . . . 2 . . 2 . . 1 . . . 2 Engine 8 | 1 . 1 . . 1 2 . . . 2 . . . . . . 1 . . . . . . . Core 1 | . . . . . 1 . . . . . . . . . . . . . . . . . . . Reactor 7 | . . . . . . . . . . 1 . . . 2 . . 1 . . 1 . . . 2 Propulsion 36 | 2 . . . 1 20 2 . . . 8 . 3 . . . . . . . . . . . . Treads 20 | . . . . . 10 . . . . 7 . 3 . . . . . . . . . . . . Leg 9 | 2 . . . 1 3 2 . . . 1 . . . . . . . . . . . . . . Wheel 2 | . . . . . 2 . . . . . . . . . . . . . . . . . . . Hover 5 | . . . . . 5 . . . . . . . . . . . . . . . . . . . Flight . | . . . . . . . . . . . . . . . . . . . . . . . . . Utility 165 | 2 1 2 . 2 18 37 11 . 1 17 1 14 4 1 1 1 30 1 . 8 1 4 5 3 Device 143 | 1 . 1 . 1 10 34 11 . 1 16 1 14 4 . 1 1 25 1 . 8 1 4 5 3 Storage 2 | . 1 . . . 1 . . . . . . . . . . . . . . . . . . . Processor 5 | 1 . . . . . 1 . . . . . . . . . . 3 . . . . . . . Hackware 1 | . . . . . . . . . . . . . . . . . 1 . . . . . . . Protection 14 | . . 1 . 1 7 2 . . . 1 . . . 1 . . 1 . . . . . . . Artifact . | . . . . . . . . . . . . . . . . . . . . . . . . . Weapon 90 | 2 6 . . . 13 10 22 . . 13 . 3 3 . . . 6 . 1 2 1 3 1 4 Energy Gun 17 | . 5 . . . 7 . 4 . . . . 1 . . . . . . . . . . . . Energy Cannon 27 | . . . . . . . 2 . . 10 . 2 1 . . . 3 . . 1 1 3 1 3 Ballistic Gun 25 | 2 . . . . 5 8 9 . . 1 . . . . . . . . . . . . . . Ballistic Cannon 1 | . . . . . . . 1 . . . . . . . . . . . . . . . . . Launcher 9 | . . . . . . 1 3 . . 2 . . . . . . 2 . . 1 . . . . Special Weapon 8 | . 1 . . . 1 1 2 . . . . . 1 . . . . . 1 . . . . 1 Impact Weapon 3 | . . . . . . . 1 . . . . . 1 . . . 1 . . . . . . . Slashing Weapon . | . . . . . . . . . . . . . . . . . . . . . . . . . Piercing Weapon . | . . . . . . . . . . . . . . . . . . . . . . . . . Special Melee Weapon . | . . . . . . . . . . . . . . . . . . . . . . . . . Unidentified Prototypes 32 | . 1 . . 1 1 . 10 . . 5 . 5 . 1 1 . 4 . . 3 . . . . Parts Lost . | . . . . . . . . . . . . . . . . . . . . . . . . . Power . | . . . . . . . . . . . . . . . . . . . . . . . . . Propulsion . | . . . . . . . . . . . . . . . . . . . . . . . . . Utility . | . . . . . . . . . . . . . . . . . . . . . . . . . Weapon . | . . . . . . . . . . . . . . . . . . . . . . . . . Highest Loss Streak . | . . . . . . . . . . . . . . . . . . . . . . . . . To Critical Strikes . | . . . . . . . . . . . . . . . . . . . . . . . . . Average Slot Usage (%) 90 | . 99 99 100 99 96 93 87 88 88 89 86 85 85 86 85 86 87 88 88 86 84 83 84 84 Engine 5 | . 13 10 10 10 2 10 11 11 11 7 4 4 4 . . . 1 . . . . . . . Reactor 3 | . . . . . . . . . . 2 4 4 4 7 8 8 10 12 12 10 8 8 8 7 Treads 9 | . . . . . 14 12 . . . 9 13 13 13 13 13 13 12 12 12 12 12 12 12 11 Leg 5 | . 27 20 20 20 4 5 11 11 11 4 . . . . . . . . . . . . . . Device 26 | . 13 17 20 13 20 27 32 33 33 30 31 30 33 30 29 30 27 24 24 24 24 27 28 28 Storage 1 | . 7 10 10 10 7 . . . . . . . . . . . . . . . . . . . Processor 4 | . 5 . . . . 4 5 5 5 4 4 4 4 4 4 4 4 8 8 8 8 4 4 3 Protection 6 | . . 8 10 16 6 5 5 5 5 4 4 4 4 7 8 8 8 8 8 8 8 8 8 7 Energy Gun 5 | . 23 31 30 30 15 . . . . . . . . . . . . . . . . . . . Energy Cannon 13 | . . . . . . . 7 11 11 21 22 21 21 21 21 21 22 24 23 23 24 24 24 23 Ballistic Gun 6 | . 6 . . . 12 23 14 11 11 2 . . . . . . . . . . . . . . Peak Build Rating 222 | 7 11 16 17 22 52 68 82 80 81 148 144 162 162 170 171 171 201 198 194 209 209 209 212 222 Average Rating 113 | 5 9 14 16 17 38 59 75 80 79 110 143 153 160 168 170 171 185 195 194 196 204 204 210 215 On Entrance 117 | . 7 11 16 17 17 45 60 80 80 77 142 144 155 160 169 171 171 198 194 194 209 204 209 210 Naked Turns . | . . . . . . . . . . . . . . . . . . . . . . . . . Heaviest Build 185 | 10 19 25 25 32 52 56 65 61 61 92 92 96 96 117 117 115 151 146 145 146 139 165 169 185 Greatest Support 260 | 20 20 20 20 23 117 93 65 65 65 242 215 260 260 260 260 260 260 260 260 260 260 260 260 260 Greatest Overweight (x) 4 | 2 . 1 1 1 4 1 . . . 1 . . . . . . . . . . . . . . Average Overweight (x) . | . . . 1 1 . . . . . . . . . . . . . . . . . . . . Largest Inventory Capacity 8 | 3 3 3 3 4 5 6 6 6 7 7 7 7 7 7 7 7 7 7 7 7 7 7 8 8 Average Capacity 6 | 3 3 3 3 3 4 5 6 6 6 7 7 7 7 7 7 7 7 7 7 7 7 7 7 8 Most Carried 8 | 1 3 3 3 4 5 6 6 6 7 7 7 7 7 7 7 7 7 7 7 7 7 7 8 8 Average Carried 5 | . 2 2 2 3 4 5 5 6 6 6 7 6 7 6 6 7 6 7 7 6 7 6 7 7 Final Capacity 8 | 3 3 3 3 4 5 6 6 6 7 7 7 7 7 7 7 7 7 7 7 7 7 7 8 8 Final Carried 8 | 1 3 3 3 4 5 6 6 6 7 7 7 7 7 7 7 7 7 7 7 7 7 7 8 8 Class Distribution -------------------- 41% | Hacker-Tank 22% | Machinist-Executioner 13% | Hacker-Gunner 9% | Trapper-Gunner 4% | Trapper-Tank Dominant Class ---------------- Hacker-Mutant | -10/Materials Hacker-Tank | -10/Mines Hacker-Tank | -10/Exiles Hacker-Tank | -9/Mines Hacker-Tank | -8/Materials Hacker-Gunner | -7/Factory Hacker-Gunner | -7/Storage Trapper-Gunner | -7/Recycling Trapper-Gunner | -7/Scraptown Hacker-Tank | -5/Factory Hacker-Tank | -5/Waste Hacker-Tank | -5/Factory Hacker-Tank | -5/Extension Hacker-Tank | -5/Cetus Hacker-Tank | -5/Archives Hacker-Tank | -5/Hub_04(d) Machinist-Executioner | -4/Factory Machinist-Executioner | -4/Upper Caves Machinist-Executioner | -4/Upper Caves Machinist-Executioner | -4/Warlord Machinist-Executioner | -3/Proximity Caves Hacker-Executioner | -3/Research Machinist-Executioner | -2/Research Machinist-Executioner | -1/Access Resources | -11 -10 -10 -10 -9 -8 -7 -7 -7 -7 -5 -5 -5 -5 -5 -5 -5 -4 -4 -4 -4 -3 -3 -2 -1 ----------- Run | Yrd Mat Min Exi Min Mat Fac Sto Rec Scr Fac Was Fac Ext Cet Arc Hub Fac Upp Upp War Pro Res Res Acc Matter Collected 6348 | 216 240 30 . 30 980 1784 794 56 . 635 10 28 285 40 . 20 390 10 . 381 209 70 60 80 Remotely 2456 | . . . . . 50 1597 488 56 . 265 . . . . . . . . . . . . . . Salvage Created 33743 | . 814 320 . 71 2645 2959 1688 390 . 4145 . 1167 859 203 414 3746 5729 820 198 3525 363 372 1536 1779 Parts 1446 | . 55 36 . 10 121 144 126 16 . 181 3 41 34 14 5 120 175 21 11 126 21 22 59 105 Haulers Intercepted 30 | . . . . . 4 3 5 . . 5 . . . . . 3 6 . . . . 1 2 1 Recyclers Shooed 12 | . 1 . . . 6 . 1 . . . . 2 1 . . . 1 . . . . . . . Parts Field Recycled . | . . . . . . . . . . . . . . . . . . . . . . . . . Retrieved Matter . | . . . . . . . . . . . . . . . . . . . . . . . . . Parts Self-Destructed . | . . . . . . . . . . . . . . . . . . . . . . . . . Prevented . | . . . . . . . . . . . . . . . . . . . . . . . . . Kills | -11 -10 -10 -10 -9 -8 -7 -7 -7 -7 -5 -5 -5 -5 -5 -5 -5 -4 -4 -4 -4 -3 -3 -2 -1 ------- Run | Yrd Mat Min Exi Min Mat Fac Sto Rec Scr Fac Was Fac Ext Cet Arc Hub Fac Upp Upp War Pro Res Res Acc Combat Hostiles Destroyed 498 | . 16 10 . 4 35 38 34 4 . 59 1 14 11 4 3 27 75 13 2 82 9 6 21 30 Guns 122 | . 15 10 . 3 30 38 19 2 . 5 . . . . . . . . . . . . . . Cannons 279 | . . . . . . . 11 2 . 50 1 11 10 2 3 17 61 10 1 48 6 6 14 26 AOE 34 | . . . . 1 4 . 2 . . . . 1 . . . 1 . . . 22 . . 3 . Classes Destroyed 27 | . 7 2 . 1 4 3 1 . . 1 1 1 1 . . 1 . . . 2 1 . . 1 Worker 32 | . 1 1 . . 1 1 2 . . 9 . 1 1 . . 8 5 . . . . . . 2 Builder 22 | . 3 . . . 1 2 4 . . 3 . 4 . . . 3 1 . . . . . . 1 Tunneler 8 | . . 1 . . . 2 . . . 1 . 2 . . . 2 . . . . . . . . Hauler 30 | . . . . . 4 3 5 . . 5 . . . . . 3 6 . . . . 1 2 1 Recycler 39 | . 4 1 . . 10 11 1 . . . . 3 1 . . 2 5 . . . . . . 1 Mechanic 3 | . . . . . 1 . 1 . . . . . . . . . 1 . . . . . . . Operator 12 | . . . . . 1 2 1 . . 1 . 1 . . 1 3 . . . . . 1 . 1 Watcher 36 | . 2 . . . 5 5 2 . . 7 . 2 2 . . 1 7 . . . . 1 1 1 Swarmer 58 | . 2 6 . 3 6 4 . . . 5 . . 1 . . . 11 3 . 7 . . 5 5 Saboteur 6 | . . . . . . . . . . . . . . . . 1 1 . . 4 . . . . Grunt 185 | . 11 2 . . 18 15 16 . . 24 . 5 1 . . 9 32 4 . 34 4 3 5 2 Brawler 17 | . . . . . . 3 1 . . 2 . . . . . 2 1 2 . 5 . . 1 . Duelist 12 | . . . . . . 3 2 . . . . . . . . . 5 . . . 1 . . 1 Protector 13 | . . . . . . . 1 . . 2 . 1 . . . 1 2 . . 5 . . 1 . Sentry 65 | . . 2 . . 10 6 9 4 . 5 . 3 5 . 3 6 6 2 . . . 1 2 1 Demolisher 3 | . . . . 1 . . . . . . . . . . . . . . . 1 . . 1 . Specialist 6 | . . . . . . . . . . . . 2 . . . . 1 . . 3 . . . . Hunter 41 | . . . . . 1 . 1 . . 6 . 2 2 . . 2 7 . 2 3 2 2 . 11 Programmer 60 | . . . . . . 7 4 . . 14 . 1 1 . . 1 9 2 . 9 1 . 3 8 Heavy 2 | . . . . . . . . . . 1 . . . . . . . . . . . . . 1 Behemoth 3 | . . . . . . . . . . . . . 1 . . . . . . . 1 . 1 . Compactor 1 | . . . . . . . . . . . 1 . . . . . . . . . . . . . Cetus Guard 4 | . . . . . . . . . . . . . . 4 . . . . . . . . . . Enhanced Grunt 4 | . . . . . . . . . . . . . . . . 4 . . . . . . . . Lightning 6 | . . . . . . . . . . . . . . . . 6 . . . . . . . . Striker 5 | . . . . . . . . . . . . . . . . . . . . 5 . . . . Executioner 8 | . . . . . . . . . . . . . . . . . . . . 6 . . 2 . Subdweller 3 | . 3 . . . . . . . . . . . . . . . . . . . . . . . Decomposer 1 | . . . . . . . . . . . . . . . . . . . . . 1 . . . Samaritan 1 | . . . . . . . . . . . . . . . . . . . . . 1 . . . Surgeon 2 | . . . . . . . . . . . . . . . . 2 . . . . . . . . Wasp 1 | . . . . . . . . . . . . . . . . 1 . . . . . . . . Thug 7 | . . . . . . . . . . . . . . . . 6 . . . 1 . . . . Savage 1 | . . . . . . . . . . . . . . . . . . . 1 . . . . . Mutant 1 | . . . . . . . . . . . . . . . . . . . . . . . . 1 Best Kill Streak 22 | . 5 3 . 3 12 8 12 1 . 10 1 7 5 3 3 14 11 4 2 22 3 3 9 17 Combat Bots Only 22 | . 3 2 . 3 3 5 10 1 . 7 1 3 4 3 3 8 7 4 2 22 3 2 9 14 Max Kills in Single Turn 10 | . 2 1 . 2 2 2 3 1 . 4 1 7 2 1 1 10 2 1 1 4 1 1 4 2 Gunslinging 1 | . 1 . . 1 1 . 1 . . . . . . . . . . . . . . . . . Exploded 4 | . . . . 1 1 . 1 . . . . 1 . . . 1 . . . 4 . . 3 . Melee . | . . . . . . . . . . . . . . . . . . . . . . . . . Uniques/NPCs Destroyed . | . . . . . . . . . . . . . . . . . . . . . . . . . Combat | -11 -10 -10 -10 -9 -8 -7 -7 -7 -7 -5 -5 -5 -5 -5 -5 -5 -4 -4 -4 -4 -3 -3 -2 -1 -------- Run | Yrd Mat Min Exi Min Mat Fac Sto Rec Scr Fac Was Fac Ext Cet Arc Hub Fac Upp Upp War Pro Res Res Acc Hostile Shots Fired 1695 | . 37 24 . 13 115 213 123 45 . 256 . 6 12 7 . 57 237 25 8 358 38 8 33 80 Missed 624 | . 9 8 . 2 38 78 56 27 . 98 . 3 5 1 . 11 76 14 2 145 15 5 9 22 Damage Taken 6989 | . 195 105 . 169 490 733 211 34 . 1120 . 46 82 54 11 735 839 46 13 1413 98 15 154 426 Core 4507 | . 156 80 . 114 347 458 116 13 . 741 . 38 56 40 8 474 521 31 8 896 57 5 89 259 Absorbed by Shields 3182 | . . . . . 167 329 116 23 . 478 . 18 34 22 4 276 437 41 12 730 86 13 159 237 Reduced by Siege Mode 78 | . . . . . . . . . . 10 . . . 1 . 10 27 . . 21 . . . 9 Redirected to Core 4087 | . 114 56 . 104 312 394 104 13 . 687 . 23 47 32 8 440 512 27 8 801 52 5 89 259 Ignored by Resistances 10611 | . 181 100 . 133 630 919 326 67 . 1490 . 66 120 81 15 715 1702 140 27 2683 239 35 286 656 Regen/Repaired (Parts) 42 | . . . . . 19 . . . . . 16 . 7 . . . . . . . . . . . Core Remaining (%) 98 | 100 . . . 85 100 . . . 98 . . . . . . 100 . . . . 100 100 100 100 Volleys Fired 937 | . 49 16 . 4 85 115 77 7 . 135 1 28 21 8 12 52 126 15 5 78 15 17 26 45 Largest 6 | . 3 3 . 3 4 4 4 4 . 5 5 5 5 5 5 5 6 6 6 6 6 6 6 6 Hottest 240 | . 135 135 . 135 180 112 146 115 . 170 170 175 175 175 175 175 210 210 210 210 210 210 230 240 Shots Fired 4050 | . 108 48 . 12 286 449 281 28 . 542 5 112 93 40 24 245 699 90 30 399 90 77 156 236 Gun 1173 | . 105 48 . 12 284 449 203 14 . 54 . 4 . . . . . . . . . . . . Cannon 2861 | . . . . . . . 76 14 . 488 5 108 93 40 24 245 699 90 30 390 90 77 156 236 Launcher 11 | . . . . . . . 2 . . . . . . . . . . . . 9 . . . . Special 5 | . 3 . . . 2 . . . . . . . . . . . . . . . . . . . Kinetic 801 | . 22 . . . 60 449 202 14 . 54 . . . . . . . . . . . . . . Thermal 2871 | . 3 . . . 2 . 77 14 . 488 5 112 93 40 24 245 699 90 30 390 90 77 156 236 Explosive 11 | . . . . . . . 2 . . . . . . . . . . . . 9 . . . . Electromagnetic 367 | . 83 48 . 12 224 . . . . . . . . . . . . . . . . . . . Robot Hit Streak 60 | . 28 39 . 4 32 41 38 9 . 55 13 24 24 24 15 41 37 60 24 39 29 21 20 14 Robot Miss Streak 4 | . 2 2 . 2 3 3 3 2 . 3 . 1 2 1 . 2 3 1 . 4 1 1 2 4 Penetration Max 1 | . . . . . . 1 . . . . . . . . . . . . . . . . . . Secondary Targets 40 | . 3 . . 1 4 12 6 . . . . . . . . . . . . . . . 9 5 Max Gunslinging Chain 1 | . 1 . . 1 1 1 1 . . . . . . . . . . . . . . . 1 1 Shots Hit Robots 2494 | . 82 33 . 9 203 321 182 17 . 351 5 51 48 35 11 129 405 54 20 217 48 42 97 134 Core Hits 1117 | . 31 16 . 6 106 116 85 8 . 138 2 27 22 13 6 85 162 18 6 146 17 18 41 48 Critical Kills 40 | . . . . . . 2 2 . . 1 . 1 2 1 . 4 8 1 . 8 3 . 3 4 Critical Parts Destroyed 5 | . . . . . 1 2 2 . . . . . . . . . . . . . . . . . Critical Strikes 53 | . 5 . . . 3 5 4 . . 1 . 1 2 1 . 4 8 1 . 8 3 . 3 4 Meltdown 38 | . . . . . . . 2 . . 1 . 1 2 1 . 4 8 1 . 8 3 . 3 4 Destroy 8 | . . . . . 1 5 2 . . . . . . . . . . . . . . . . . Corrupt 7 | . 5 . . . 2 . . . . . . . . . . . . . . . . . . . Melee Attacks . | . . . . . . . . . . . . . . . . . . . . . . . . . Impact . | . . . . . . . . . . . . . . . . . . . . . . . . . Slashing . | . . . . . . . . . . . . . . . . . . . . . . . . . Piercing . | . . . . . . . . . . . . . . . . . . . . . . . . . Sneak Attacks . | . . . . . . . . . . . . . . . . . . . . . . . . . Combat Hostiles . | . . . . . . . . . . . . . . . . . . . . . . . . . Follow-up Attacks . | . . . . . . . . . . . . . . . . . . . . . . . . . Damage Inflicted 93839 | . 1354 479 . 162 4675 6532 4459 431 . 12239 183 3045 2088 1274 458 8714 15979 1962 756 14737 1863 1514 4496 6439 Guns 14913 | . 1273 454 . 119 3641 6268 2247 135 . 646 . 130 . . . . . . . . . . . . Cannons 63859 | . . . . . . . 1623 296 . 10800 183 1851 2053 1274 439 5168 15435 1962 756 8569 1863 1514 3634 6439 Explosions 14823 | . 81 25 . 43 1034 259 589 . . 748 . 1014 . . . 3494 506 . . 6168 . . 862 . Melee . | . . . . . . . . . . . . . . . . . . . . . . . . . Ramming 244 | . . . . . . 5 . . . 45 . 50 35 . 19 52 38 . . . . . . . Kinetic 10258 | . 215 . . . 763 6268 2231 135 . 646 . . . . . . . . . . . . . . Thermal 67056 | . 81 25 . 43 1034 165 1639 296 . 11489 183 2995 2053 1274 439 5168 15435 1962 756 8569 1863 1514 3634 6439 Explosive 8157 | . . . . . . 94 589 . . . . . . . . . 444 . . 6168 . . 862 . Electromagnetic 8124 | . 1058 454 . 119 2878 . . . . 59 . . . . . 3494 62 . . . . . . . Impact . | . . . . . . . . . . . . . . . . . . . . . . . . . Slashing . | . . . . . . . . . . . . . . . . . . . . . . . . . Piercing . | . . . . . . . . . . . . . . . . . . . . . . . . . Highest Corruption 7 | . . . . . . 1 1 . . 1 . . . . . 7 2 . . . . . . . Average Corruption 1 | . . . . . . 1 1 . . 1 . . . . . 5 1 . . . . . . . Corruption Purged 3 | . . . . . . 1 1 . . 1 . . . . . . . . . . . . . . Corruption Blocked . | . . . . . . . . . . . . . . . . . . . . . . . . . Effects 22 | . . . . . . 11 1 . . 1 . . . . . 8 1 . . . . . . . Message Errors 5 | . . . . . . 2 . . . . . . . . . 2 1 . . . . . . . Matter Fused 6 | . . . . . . 4 . . . 1 . . . . . 1 . . . . . . . . Heat Flow Errors 4 | . . . . . . 2 1 . . . . . . . . 1 . . . . . . . . Energy Discharges 2 | . . . . . . 1 . . . . . . . . . 1 . . . . . . . . Data Loss (minor) 1 | . . . . . . . . . . . . . . . . 1 . . . . . . . . Misfires 1 | . . . . . . . . . . . . . . . . 1 . . . . . . . . Alerts 2 | . . . . . . 2 . . . . . . . . . . . . . . . . . . Weapon Failures 1 | . . . . . . . . . . . . . . . . 1 . . . . . . . . Overload Shots 2 | . . . . . . . . . . . . . . . . . . . . 2 . . . . Overflow Damage 2749 | . . . . . 17 5 70 . . 307 . 438 4 . 9 216 497 67 37 669 34 . 117 262 Projectiles 1693 | . . . . . . . 64 . . 238 . . 4 . . 190 480 67 37 232 34 . 85 262 Explosions 1047 | . . . . . 17 5 6 . . 69 . 438 . . . 26 17 . . 437 . . 32 . Melee 9 | . . . . . . . . . . . . . . . 9 . . . . . . . . . Knockbacks 2 | . . . . . . . . . . 1 . . . . . 1 . . . . . . . . Impact 2 | . . . . . . . . . . 1 . . . . . 1 . . . . . . . . Kinetic . | . . . . . . . . . . . . . . . . . . . . . . . . . Secondary . | . . . . . . . . . . . . . . . . . . . . . . . . . Self-Inflicted Damage 360 | . . 14 . . 94 64 . . . . . . . . . 188 . . . . . . . . Shots 10 | . . 1 . . 4 2 . . . . . . . . . 3 . . . . . . . . Rammed 14 | . . . . . . 2 . . . 2 . 3 1 . 1 4 1 . . . . . . . Targets Rammed 18 | . . . . . . 2 . . . 5 . 4 1 . 1 4 1 . . . . . . . Kicked . | . . . . . . . . . . . . . . . . . . . . . . . . . Crushed 4 | . . . . . . . . . . 3 . 1 . . . . . . . . . . . . Highest Temperature 361 | . 314 220 . 137 361 193 291 106 . 236 50 108 108 98 122 292 162 24 12 74 . . 66 153 Average Temperature 46 | . 67 60 . 56 68 36 47 52 . 60 37 43 52 47 65 85 37 10 5 18 . . 13 32 Received Heat Transfer 2311 | . 138 42 . 20 365 306 122 15 . 528 . 6 18 6 . 87 313 10 . 242 40 5 44 4 Effects 2 | . . . . . 2 . . . . . . . . . . . . . . . . . . . Shutdowns 1 | . . . . . 1 . . . . . . . . . . . . . . . . . . . Damage (minor) 1 | . . . . . 1 . . . . . . . . . . . . . . . . . . . Siege Activations 23 | . . . . . . . . . . 2 . 1 2 1 . 4 5 . 1 4 . . . 3 Total Turns 442 | . . . . . . . . . . 45 . 14 15 9 . 45 71 . 6 180 . . . 57 Longest Duration 105 | . . . . . . . . . . 26 . 14 8 9 . 21 25 . 6 105 . . . 43 Robots Corrupted 14 | . 2 . . . 2 . . . . . . . . . 1 9 . . . . . . . . Combat Hostiles 3 | . 1 . . . 1 . . . . . . . . . . 1 . . . . . . . . Parts Fried 55 | . 9 . . . 21 . 2 . . . . . . . 2 17 1 . . 3 . . . . Impact Corruptions 1 | . . . . . . . . . . . . . . . 1 . . . . . . . . . Robots Melted 66 | . . . . . . . 2 . . 4 . 2 2 2 . 9 17 3 1 13 3 . 4 4 Combat Hostiles 60 | . . . . . . . 2 . . 4 . 2 1 2 . 8 14 3 1 12 3 . 4 4 Parts Melted 332 | . . . . . 1 . 6 1 . 37 1 5 19 6 4 32 93 11 4 56 15 4 19 18 Heat Transferred 80329 | . 100 50 . 50 1300 100 2401 385 . 12846 237 3385 2750 1750 600 6777 20302 2650 775 10529 2450 2050 3876 4966 Parts Sabotaged . | . . . . . . . . . . . . . . . . . . . . . . . . . Parts Stolen . | . . . . . . . . . . . . . . . . . . . . . . . . . Parts Stripped . | . . . . . . . . . . . . . . . . . . . . . . . . . Power Chain Reactions 20 | . 2 1 . 1 16 . . . . . . . . . . . . . . . . . . . Alert | -11 -10 -10 -10 -9 -8 -7 -7 -7 -7 -5 -5 -5 -5 -5 -5 -5 -4 -4 -4 -4 -3 -3 -2 -1 ------- Run | Yrd Mat Min Exi Min Mat Fac Sto Rec Scr Fac Was Fac Ext Cet Arc Hub Fac Upp Upp War Pro Res Res Acc Peak Influence 1479 | . 298 128 . 70 392 325 571 83 . 572 49 1468 773 489 126 1479 1118 . . . . 166 548 669 Initial 532 | . . 18 . . 19 . 1 23 . . 49 . 528 281 52 1 532 . . . . . . 127 Average 245 | . 80 48 . 4 144 76 229 32 . 208 39 617 605 356 85 574 739 . . . . 73 234 321 Maximum Alert Level 4 | . 1 . . . 1 1 2 . . 2 . 4 3 2 . 4 4 . . . . . 2 2 Low Security (%) 58 | 100 85 100 . 100 68 88 38 100 . 48 100 29 . 27 100 14 1 . . . . 100 28 34 Level 1 19 | . 14 . . . 31 11 46 . . 39 . 16 . 33 . 26 5 . . . . . 54 43 Level 2 11 | . . . . . . . 15 . . 12 . 6 74 38 . 24 32 . . . . . 17 22 Level 3 8 | . . . . . . . . . . . . 26 25 . . 13 57 . . . . . . . Level 4 1 | . . . . . . . . . . . . 20 . . . 21 2 . . . . . . . Level 5 . | . . . . . . . . . . . . . . . . . . . . . . . . . High Security . | . . . . . . . . . . . . . . . . . . . . . . . . . Max Security . | . . . . . . . . . . . . . . . . . . . . . . . . . Squads Dispatched 99 | . 3 . . . 7 13 10 . . 18 . 11 2 . . 8 14 . . . . 6 1 6 Investigation 23 | . 3 . . . 1 5 1 . . 7 . 2 . . . . . . . . . 3 . 1 Extermination 21 | . . . . . . 5 4 . . 4 . 2 . . . . 4 . . . . . . 2 Reinforcement 36 | . . . . . 3 1 3 . . 3 . 5 1 . . 6 7 . . . . 3 1 3 Assault 11 | . . . . . . 1 2 . . 1 . 1 1 . . 2 3 . . . . . . . Garrison 8 | . . . . . 3 1 . . . 3 . 1 . . . . . . . . . . . . Intercept . | . . . . . . . . . . . . . . . . . . . . . . . . . Searches Triggered . | . . . . . . . . . . . . . . . . . . . . . . . . . Construction Impeded 8 | . . . . . 1 . . . . . . 3 1 . . 2 1 . . . . . . . Haulers Reinforced 10 | . . . . . . . 1 . . 2 . 1 . . . 1 3 . . . . 1 . 1 Active Scanning Responses . | . . . . . . . . . . . . . . . . . . . . . . . . . Cargo Convoy Interrupts 3 | . . . . . . . . . . 1 . 1 . . . . 1 . . . . . . . Stealth | -11 -10 -10 -10 -9 -8 -7 -7 -7 -7 -5 -5 -5 -5 -5 -5 -5 -4 -4 -4 -4 -3 -3 -2 -1 --------- Run | Yrd Mat Min Exi Min Mat Fac Sto Rec Scr Fac Was Fac Ext Cet Arc Hub Fac Upp Upp War Pro Res Res Acc Distress Signals 24 | . 1 . . . 2 1 1 . . 2 . 1 . 2 . 1 4 . . 2 . 3 4 . Communications Jammed . | . . . . . . . . . . . . . . . . . . . . . . . . . Distress Signals . | . . . . . . . . . . . . . . . . . . . . . . . . . Times Spotted 650 | . 20 9 . 22 45 48 35 4 . 76 . 26 17 10 4 33 94 14 2 125 9 9 21 27 Peak Tracking Total 16 | . 3 2 . 11 4 4 5 1 . 7 . 5 5 5 2 5 6 5 2 16 3 2 9 6 Tactical Retreats 8 | . . . . 1 2 . 1 . . 2 . . . . . . 1 . . 1 . . . . Traps | -11 -10 -10 -10 -9 -8 -7 -7 -7 -7 -5 -5 -5 -5 -5 -5 -5 -4 -4 -4 -4 -3 -3 -2 -1 ------- Run | Yrd Mat Min Exi Min Mat Fac Sto Rec Scr Fac Was Fac Ext Cet Arc Hub Fac Upp Upp War Pro Res Res Acc Traps Triggered 6 | . . . . . 1 4 . . . 1 . . . . . . . . . . . . . . Indirectly . | . . . . . . . . . . . . . . . . . . . . . . . . . Trap Hack Attempts . | . . . . . . . . . . . . . . . . . . . . . . . . . Triggered . | . . . . . . . . . . . . . . . . . . . . . . . . . Disarmed 3 | . . . . . . . . . . . . . . . . 3 . . . . . . . . Reprogrammed . | . . . . . . . . . . . . . . . . . . . . . . . . . Reused 35 | . . . . . 1 1 5 . . 10 . 7 . . . 3 8 . . . . . . . Traps Reconfigurated 140 | . . . . . 10 34 17 . . 18 . 12 20 . . 6 20 . . . . 3 . . Traps Extracted 30 | . . . . . 2 12 2 . . . . 6 6 . . . 2 . . . . . . . Installed 14 | . . . . . . . . . . 8 . 5 1 . . . . . . . . . . . Triggered 51 | . . . . . 1 1 5 . . 10 . 7 . . . 3 8 . . 16 . . . . Most Traps Carried 14 | . . . . . 2 12 14 14 14 14 6 7 12 12 12 12 14 . . . . . . . Machines | -11 -10 -10 -10 -9 -8 -7 -7 -7 -7 -5 -5 -5 -5 -5 -5 -5 -4 -4 -4 -4 -3 -3 -2 -1 ---------- Run | Yrd Mat Min Exi Min Mat Fac Sto Rec Scr Fac Was Fac Ext Cet Arc Hub Fac Upp Upp War Pro Res Res Acc Machines Disabled 147 | . 1 . . . 6 14 9 . . 29 . 28 5 . 1 24 16 1 1 3 . 2 2 5 Max in Single Turn 15 | . 1 . . . 2 5 1 . . 8 . 15 2 . . 5 3 1 1 1 . 1 1 1 Garrison Access 10 | . . . . . . 2 1 . . 1 . 1 . . . 1 1 . . . . 1 2 . Network Hub 3 | . . . . . . . . . . . . . . . . 3 . . . . . . . . Energy Cycler 1 | . . . . . . . . . . . . . 1 . . . . . . . . . . . Machines Repaired . | . . . . . . . . . . . . . . . . . . . . . . . . . Machines Dismantled 11 | . . . . . 1 4 2 . . . . . 1 . . . . . 1 . . . . 2 Machines Sabotaged 1 | . 1 . . . . . . . . . . . . . . . . . . . . . . . Overloaded Fab Kills . | . . . . . . . . . . . . . . . . . . . . . . . . . Hacking | -11 -10 -10 -10 -9 -8 -7 -7 -7 -7 -5 -5 -5 -5 -5 -5 -5 -4 -4 -4 -4 -3 -3 -2 -1 --------- Run | Yrd Mat Min Exi Min Mat Fac Sto Rec Scr Fac Was Fac Ext Cet Arc Hub Fac Upp Upp War Pro Res Res Acc Machines Accessed 133 | . 10 . 2 2 13 17 10 8 1 19 . 9 7 1 . 3 12 1 3 1 1 7 1 5 Terminals 84 | . 8 . . 1 9 10 9 6 . 9 . 6 7 1 . 3 6 . . . 1 5 . 3 Fabricators 19 | . . . . . . 4 . . . 6 . 2 . . . . 3 . . . . 1 1 2 Repair Stations 1 | . . . . . 1 . . . . . . . . . . . . . . . . . . . Recycling Units 8 | . 2 . . . 2 . . 2 . . . . . . . . 2 . . . . . . . Scanalyzers 6 | . . . . . 1 2 . . . 2 . 1 . . . . . . . . . . . . Garrison Access 6 | . . . . . . 1 1 . . 2 . . . . . . 1 . . . . 1 . . Total Hacks 557 | . 41 . 2 4 63 70 27 29 10 74 . 28 8 1 . 18 87 1 3 1 1 49 6 34 Successful 351 | . 29 . 2 4 41 52 15 17 10 49 . 15 7 1 . 10 48 1 3 1 1 25 4 16 Failed 206 | . 12 . . . 22 18 12 12 . 25 . 13 1 . . 8 39 . . . . 24 2 18 Catastrophic 25 | . 1 . . . 2 2 1 1 . 1 . 3 . . . . 6 . . . . 5 . 3 Database Lockouts . | . . . . . . . . . . . . . . . . . . . . . . . . . Manual 261 | . 23 . 1 . 43 31 14 15 . 24 . 14 . 1 . 9 46 . . . . 23 2 15 Terminals 370 | . 35 . . 3 49 43 25 24 . 33 . 15 8 1 . 18 58 . . . 1 34 . 23 Fabricators 109 | . . . . . . 22 . . . 26 . 10 . . . . 20 . . . . 14 6 11 Repair Stations 2 | . . . . . 2 . . . . . . . . . . . . . . . . . . . Recycling Units 20 | . 6 . . . 6 . . 5 . . . . . . . . 3 . . . . . . . Scanalyzers 23 | . . . . . 6 4 . . . 10 . 3 . . . . . . . . . . . . Garrison Access 15 | . . . . . . 1 2 . . 5 . . . . . . 6 . . . . 1 . . Terminal Hacks 162 | . 12 . 2 4 14 21 13 10 10 14 . 4 7 1 . 7 23 1 3 1 1 9 . 5 Record 17 | . . . 1 3 . . . . 10 . . . . . . . . . 2 . 1 . . . Part Schematic 28 | . 1 . . . 3 8 1 4 . . . . . . . 1 8 . . . . 2 . . Robot Schematic 7 | . . . . . 2 3 . 1 . . . . . . . . . . . . . 1 . . Robot Analysis 2 | . . . . . . . . . . . . . 1 . . 1 . . . . . . . . Prototype ID Bank 13 | . 3 . . . 2 2 . 2 . 1 . . . . . . 2 . . . . . . 1 Open Door 13 | . . . . 1 . . 3 . . 1 . 1 3 1 . . . 1 1 1 . . . . Branch Access Points 7 | . . . . . 1 1 1 . . 1 . 1 . . . . 1 . . . . 1 . . Machine Index 4 | . 1 . . . . 1 . . . 1 . . . . . . . . . . . 1 . . Terminal Index 6 | . 1 . . . 1 . . . . 1 . . . . . 1 1 . . . . . . 1 Fabricator Index 3 | . . . . . . . . . . 1 . . . . . . 1 . . . . 1 . . Garrison Index 2 | . . . . . . . 1 . . . . . . . . . . . . . . . . 1 Alert Level 8 | . . . . . . 1 1 1 . 2 . . . . . . 2 . . . . . . 1 Unreport Threat 11 | . . . . . . 2 . 1 . 3 . . . . . 1 3 . . . . . . 1 Locate Traps 17 | . 1 . . . . 3 4 . . 2 . 2 2 . . 1 1 . . . . 1 . . Disarm Traps 1 | . . . . . . . . . . . . . . . . 1 . . . . . . . . Reprogram Traps 1 | . . . . . . . . . . 1 . . . . . . . . . . . . . . Transport Status 1 | . . . . . . . . . . . . . . . . . 1 . . . . . . . Recall Extermination 2 | . . . . . . . 1 . . . . . . . . . 1 . . . . . . . Hauler Manifests 2 | . 1 . . . . . . 1 . . . . . . . . . . . . . . . . Registered Components 7 | . 1 . . . 2 . 1 . . . . . 1 . . . 1 . . . . 1 . . Registered Prototypes 4 | . 1 . . . 1 . . . . . . . . . . . 1 . . . . 1 . . Zone Layout 5 | . 2 . . . 2 . . . . . . . . . . 1 . . . . . . . . Derelict Proto ID Bank 1 | . . . 1 . . . . . . . . . . . . . . . . . . . . . Fabricator Hacks 68 | . . . . . . 15 . . . 17 . 6 . . . . 12 . . . . 8 3 7 Network Status 5 | . . . . . . . . . . 1 . 1 . . . . 1 . . . . . 1 1 Load Schematic 33 | . . . . . . 8 . . . 9 . 2 . . . . 6 . . . . 4 1 3 Build 30 | . . . . . . 7 . . . 7 . 3 . . . . 5 . . . . 4 1 3 Repair Station Hacks 2 | . . . . . 2 . . . . . . . . . . . . . . . . . . . Scan Component 1 | . . . . . 1 . . . . . . . . . . . . . . . . . . . Repair 1 | . . . . . 1 . . . . . . . . . . . . . . . . . . . Recycling Unit Hacks 1 | . . . . . 1 . . . . . . . . . . . . . . . . . . . Retrieve Components 1 | . . . . . 1 . . . . . . . . . . . . . . . . . . . Scanalyzer 17 | . . . . . 6 4 . . . 7 . . . . . . . . . . . . . . Insert Component 6 | . . . . . 1 2 . . . 3 . . . . . . . . . . . . . . Analyze 11 | . . . . . 5 2 . . . 4 . . . . . . . . . . . . . . Garrison Access Hacks 5 | . . . . . . 1 1 . . 1 . . . . . . 1 . . . . 1 . . Seal Access 5 | . . . . . . 1 1 . . 1 . . . . . . 1 . . . . 1 . . Unauthorized Hacks 93 | . 15 . . . 18 11 1 7 . 10 . 5 . . . 3 11 . . . . 7 1 4 Terminals 67 | . 12 . . . 13 8 1 5 . 6 . 2 . . . 3 7 . . . . 6 . 4 Track 12 | . 3 . . . 2 1 . 1 . . . . . . . 2 1 . . . . 1 . 1 Assimilate 3 | . . . . . 1 . . . . 1 . . . . . . 1 . . . . . . . Botnet 47 | . 7 . . . 9 6 1 4 . 5 . 2 . . . 1 4 . . . . 5 . 3 Operators 4 | . 1 . . . 1 1 . . . . . . . . . . 1 . . . . . . . Sabotage 1 | . 1 . . . . . . . . . . . . . . . . . . . . . . . Fabricators 11 | . . . . . . 3 . . . 2 . 2 . . . . 2 . . . . 1 1 . Prioritize 11 | . . . . . . 3 . . . 2 . 2 . . . . 2 . . . . 1 1 . Repair Stations . | . . . . . . . . . . . . . . . . . . . . . . . . . Recycling Units 12 | . 3 . . . 5 . . 2 . . . . . . . . 2 . . . . . . . Reject 4 | . 1 . . . 2 . . . . . . . . . . . 1 . . . . . . . Recyclers 2 | . . . . . 1 . . 1 . . . . . . . . . . . . . . . . Mask 5 | . 1 . . . 2 . . 1 . . . . . . . . 1 . . . . . . . Tunnel 1 | . 1 . . . . . . . . . . . . . . . . . . . . . . . Scanalyzers 1 | . . . . . . . . . . . . 1 . . . . . . . . . . . . Extract 1 | . . . . . . . . . . . . 1 . . . . . . . . . . . . Garrison Access 2 | . . . . . . . . . . 2 . . . . . . . . . . . . . . Reprogram 1 | . . . . . . . . . . 1 . . . . . . . . . . . . . . Watchers 1 | . . . . . . . . . . 1 . . . . . . . . . . . . . . Data Cores Recovered 3 | . . . . . . . . . . 1 . 1 . . . . . . . . . 1 . . Used 2 | . . . . . . . . . . 1 . . . . . . . . . . . 1 . . Hacking Detections 95 | . 7 . . . 6 16 6 7 . 17 . 7 4 . . 3 9 . . . 1 6 1 5 Full Trace Events 18 | . 1 . . . 1 5 1 1 . 6 . 1 . . . . . . . . . 1 . 1 Feedback Events . | . . . . . . . . . . . . . . . . . . . . . . . . . Feedback Blocked . | . . . . . . . . . . . . . . . . . . . . . . . . . Robot Schematics Acquired 7 | . . . . . 2 3 . 1 . . . . . . . . . . . . . 1 . . Robots Built 7 | . . . . . . 4 . . . . . 2 . . . . 1 . . . . . . . Authchips 1 | . . . . . . . . . . . . . . . . . 1 . . . . . . . Time 452 | . . . . . . 207 . . . . . 169 . . . . 76 . . . . . . . Total Robot Build Rating 32 | . . . . . . 15 . . . . . 12 . . . . 5 . . . . . . . Part Schematics Acquired 40 | . 1 . . . 4 9 1 4 . 3 . 7 . . . 1 8 . . . . 2 . . Parts Built 31 | . . . . . . 5 . . . 8 . 2 . . . . 6 . . . . 5 1 4 Authchips . | . . . . . . . . . . . . . . . . . . . . . . . . . Time 1493 | . . . . . . 62 . . . 632 . 187 . . . . 160 . . . . 196 93 163 Total Part Build Rating 191 | . . . . . . 20 . . . 48 . 14 . . . . 39 . . . . 35 7 28 Parts Repaired 1 | . . . . . 1 . . . . . . . . . . . . . . . . . . . Time 16 | . . . . . 16 . . . . . . . . . . . . . . . . . . . Parts Recycled . | . . . . . . . . . . . . . . . . . . . . . . . . . Recycled Matter . | . . . . . . . . . . . . . . . . . . . . . . . . . Retrieved Matter . | . . . . . . . . . . . . . . . . . . . . . . . . . Retrieved Components 10 | . . . . . 10 . . . . . . . . . . . . . . . . . . . Parts Scanalyzed 6 | . . . . . 1 2 . . . 3 . . . . . . . . . . . . . . Part Schematics Acquired 6 | . . . . . 1 2 . . . 3 . . . . . . . . . . . . . . Parts Damaged . | . . . . . . . . . . . . . . . . . . . . . . . . . Bothacking | -11 -10 -10 -10 -9 -8 -7 -7 -7 -7 -5 -5 -5 -5 -5 -5 -5 -4 -4 -4 -4 -3 -3 -2 -1 ------------ Run | Yrd Mat Min Exi Min Mat Fac Sto Rec Scr Fac Was Fac Ext Cet Arc Hub Fac Upp Upp War Pro Res Res Acc Used RIF Installer . | . . . . . . . . . . . . . . . . . . . . . . . . . Robots Hacked . | . . . . . . . . . . . . . . . . . . . . . . . . . Non-combat . | . . . . . . . . . . . . . . . . . . . . . . . . . Combat . | . . . . . . . . . . . . . . . . . . . . . . . . . Robot Hacks Applied . | . . . . . . . . . . . . . . . . . . . . . . . . . Relay Couplers Released 5 | . . . . . . 2 . . . . . 1 . . . 1 . . . . . . 1 . Machine Destruction 5 | . . . . . . 2 . . . . . 1 . . . 1 . . . . . . 1 . Fabnet Peak Effective % . | . . . . . . . . . . . . . . . . . . . . . . . . . Robots Rewired 6 | . . . . . . . . . . . . . . . . . . 1 . 5 . . . . Allies Hacked 1 | . . . . . . . . . . 1 . . . . . . . . . . . . . . Hacks Repelled . | . . . . . . . . . . . . . . . . . . . . . . . . . Allies | -11 -10 -10 -10 -9 -8 -7 -7 -7 -7 -5 -5 -5 -5 -5 -5 -5 -4 -4 -4 -4 -3 -3 -2 -1 -------- Run | Yrd Mat Min Exi Min Mat Fac Sto Rec Scr Fac Was Fac Ext Cet Arc Hub Fac Upp Upp War Pro Res Res Acc Total Allies 53 | . . . . . 1 4 2 . . 3 20 5 6 5 . . 1 1 . 5 . . . . Largest Group 21 | . . . . . 1 4 5 . . 3 20 20 20 21 21 17 1 1 1 5 . . . . Highest-Rated Group 1159 | . . . . . 10 109 145 . . 87 784 784 830 1159 1159 824 23 49 49 284 . . . . Highest-Rated Ally 159 | . . . . . 10 40 40 . . 29 50 50 159 159 159 96 23 49 49 65 . . . . Total Orders 41 | . . . . . . 15 . . . . . . . . . . 6 . 1 12 . . 7 . STAY 16 | . . . . . . 5 . . . . . . . . . . 1 . 1 9 . . . . FOLLOW 12 | . . . . . . 6 . . . . . . . . . . 2 . . 3 . . 1 . AID 3 | . . . . . . 3 . . . . . . . . . . . . . . . . . . PICKUP 2 | . . . . . . . . . . . . . . . . . 2 . . . . . . . COLLECT 2 | . . . . . . 1 . . . . . . . . . . 1 . . . . . . . EXPLORE 6 | . . . . . . . . . . . . . . . . . . . . . . . 6 . Ally Attacks 518 | . . . . . . . 22 . . 24 . 218 102 34 39 55 . 2 . 22 . . . . Total Damage 13543 | . . . . . . . 271 . . 256 . 6663 2640 845 832 1279 . 82 . 675 . . . . Kills 59 | . . . . . . . . . . 1 . 32 13 6 1 4 . 1 . 1 . . . . Allies Corrupted 10 | . . . . . . . 1 . . . . . . . . 7 . . . 2 . . . . Allies Melted 4 | . . . . . . . . . . . . . 1 . . . . . . 2 . . 1 . Intel | -11 -10 -10 -10 -9 -8 -7 -7 -7 -7 -5 -5 -5 -5 -5 -5 -5 -4 -4 -4 -4 -3 -3 -2 -1 ------- Run | Yrd Mat Min Exi Min Mat Fac Sto Rec Scr Fac Was Fac Ext Cet Arc Hub Fac Upp Upp War Pro Res Res Acc Robot Analysis Total 2 | . . . . . . . . . . . . . 1 . . 1 . . . . . . . . Derelict Logs Recovered 7 | . . 2 . 2 . . . . . . . . . . . . . 2 1 . . . . . Drone Launches 10 | . . . . . . . . . . . . . . . . . . . . . . . 7 3 Drone Recoveries 4 | . . . . . . . . . . . . . . . . . . . . . . . 1 3 Exploration | -11 -10 -10 -10 -9 -8 -7 -7 -7 -7 -5 -5 -5 -5 -5 -5 -5 -4 -4 -4 -4 -3 -3 -2 -1 ------------- Run | Yrd Mat Min Exi Min Mat Fac Sto Rec Scr Fac Was Fac Ext Cet Arc Hub Fac Upp Upp War Pro Res Res Acc Turns Passed 32675 | 73 997 1315 739 1144 2801 4141 1781 1074 1284 3163 491 1027 1055 555 546 749 2629 1241 677 1575 962 950 888 818 Spaces Moved 18690 | 52 618 705 389 578 1719 2311 990 731 916 1616 344 626 658 280 109 391 1367 841 465 805 608 604 567 400 Core 13 | 13 . . . . . . . . . . . . . . . . . . . . . . . . Treads 11135 | . . . . . 889 1227 . . . 954 344 626 658 280 109 391 1367 841 465 805 608 604 567 400 Legs 6990 | 39 618 705 389 578 278 1084 990 731 916 662 . . . . . . . . . . . . . . Wheels 309 | . . . . . 309 . . . . . . . . . . . . . . . . . . . Hover 243 | . . . . . 243 . . . . . . . . . . . . . . . . . . . Flight . | . . . . . . . . . . . . . . . . . . . . . . . . . Fastest Speed 43 | 50 120 120 190 190 43 140 140 140 140 133 135 135 135 135 135 135 135 135 135 135 135 135 135 135 Average Speed 140 | 119 120 174 190 190 131 142 140 140 140 140 135 135 135 135 135 135 135 135 135 135 135 135 135 135 Slowest Speed 310 | 150 120 190 190 190 310 250 140 140 140 250 135 135 135 135 135 135 135 135 135 135 135 135 135 135 Overloaded Moves . | . . . . . . . . . . . . . . . . . . . . . . . . . Propulsion Burnouts . | . . . . . . . . . . . . . . . . . . . . . . . . . Robots Hopped . | . . . . . . . . . . . . . . . . . . . . . . . . . Cave-ins Triggered . | . . . . . . . . . . . . . . . . . . . . . . . . . Exploration Rate (%) 67 | 3 97 99 77 99 94 49 94 97 57 41 97 24 88 82 80 69 30 94 70 85 90 21 34 15 Regions Visited 24 Branch Regions 14 Pre-discovered Areas 7 | . 1 2 1 1 . . . . . . . . . . . . . 2 . . . . . . Known Exits Taken 22 | 1 1 1 1 1 1 1 1 1 1 . . 1 1 1 1 1 1 1 1 1 1 1 1 . Unknown Exits Taken . | . . . . . . . . . . . . . . . . . . . . . . . . . Scrap Searched 15 | . . 1 . 2 . . . . 2 . . . . . . . . 4 5 . 1 . . . Spaces Dug 107 | . 3 . . . . . 2 . . 16 . 2 . . 9 6 44 . . 5 6 4 5 5 Terrain Destroyed 1479 | . 10 6 . 4 83 65 31 5 . 165 . 65 27 2 12 569 181 12 10 79 37 23 48 45 Melee . | . . . . . . . . . . . . . . . . . . . . . . . . . Projectile 534 | . 3 . . . 1 8 12 5 . 87 . 18 18 2 12 49 123 12 10 39 37 23 35 40 AOE 944 | . 7 6 . 4 82 56 19 . . 78 . 47 9 . . 520 58 . . 40 . . 13 5 Terrain Rammed . | . . . . . . . . . . . . . . . . . . . . . . . . . Walls Destroyed . | . . . . . . . . . . . . . . . . . . . . . . . . . Machines Disabled . | . . . . . . . . . . . . . . . . . . . . . . . . . Actions | -11 -10 -10 -10 -9 -8 -7 -7 -7 -7 -5 -5 -5 -5 -5 -5 -5 -4 -4 -4 -4 -3 -3 -2 -1 --------- Run | Yrd Mat Min Exi Min Mat Fac Sto Rec Scr Fac Was Fac Ext Cet Arc Hub Fac Upp Upp War Pro Res Res Acc Total 23221 | 59 770 757 390 615 2056 2904 1266 772 917 2231 369 763 770 443 498 521 1908 918 497 1158 718 713 636 572 Wait 2473 | . 71 18 . 26 105 324 113 35 . 332 20 60 68 135 370 38 285 46 18 190 56 71 18 74 Move 18666 | 51 617 704 388 577 1718 2310 989 730 915 1616 343 625 657 279 108 390 1366 840 464 804 607 603 566 399 Hop . | . . . . . . . . . . . . . . . . . . . . . . . . . Pick Up 69 | 1 5 3 1 1 7 8 4 . 1 4 . 2 . 1 1 1 16 2 . 6 . 3 1 1 Fast Attach 133 | 7 4 1 . 2 33 15 18 . . 22 . 10 1 2 1 . 10 1 . 1 . . 1 4 Attach 20 | . 1 1 . . 2 3 3 . . 1 . 1 . . . . 5 . . 2 . 1 . . Detach 26 | . 4 . . . 2 4 3 . . 2 . 3 . . . . 6 . . . . 1 1 . Swap 154 | . 2 1 . 1 18 33 12 . 1 18 1 9 6 1 . 1 23 . 1 8 2 6 5 5 Drop 179 | . 5 3 1 2 39 18 21 . . 23 1 12 . 4 2 1 23 3 . 8 . 5 2 6 Fire 937 | . 49 16 . 4 85 115 77 7 . 135 1 28 21 8 12 52 126 15 5 78 15 17 26 45 Melee . | . . . . . . . . . . . . . . . . . . . . . . . . . Ram . | . . . . . . . . . . . . . . . . . . . . . . . . . Kick . | . . . . . . . . . . . . . . . . . . . . . . . . . Crush 18 | . . . . . . 2 . . . 5 . 4 1 . 1 4 1 . . . . . . . Escape Stasis . | . . . . . . . . . . . . . . . . . . . . . . . . . Rewire 33 | . . . . . . . . . . . . . . . . . . 2 . 31 . . . . Trap 14 | . . . . . . . . . . 8 . 5 1 . . . . . . . . . . . Miscellaneous 499 | . 12 10 . 2 47 72 26 . . 65 3 4 15 13 3 34 47 9 9 30 38 6 16 38 Route ------- -11/Scrapyard -10/Materials (discovered 5 exits: *Mat x3 / *Min / *Sub) -10/Mines (discovered 4 exits: *Mat x2 / *Exi / *Sub) -10/Exiles (discovered 2 exits: *Min x2) -9/Mines (discovered 2 exits: *Mat x2) -8/Materials (discovered 3 exits: *Fac x3) -7/Factory (discovered 6 exits: *Fac x2 / *Sto x2 / *Low x2) -7/Storage (discovered 2 exits: *Fac / *Rec) -7/Recycling (discovered 2 exits: *Fac / *Scr) -7/Scraptown -5/Factory (discovered 5 exits: *Fac / *Upp x2 / *Ext x2) -5/Waste -5/Factory (discovered 4 exits: *Upp x2 / *Ext x2) -5/Extension (discovered 2 exits: *Fac / *Cet) -5/Cetus (discovered 2 exits: *Fac / *Arc) -5/Archives -5/Hub_04(d) (discovered 3 exits: *Fac x3) -4/Factory (discovered 4 exits: *Res / *Upp x2 / Arm) -4/Upper Caves -4/Upper Caves (discovered 2 exits: *Res / *War) -4/Warlord -3/Proximity Caves -3/Research (discovered 3 exits: *Res / *Tes x2) -2/Research (discovered 2 exits: *Acc / Qua) -1/Access To Epsilon Eridani History --------- Turn | Location | Event 1 | -11/Scrapyard | Upgraded with Propulsion slot (x1) 1 | -11/Scrapyard | Upgraded with Utility slot (x1) 1 | -11/Scrapyard | Upgraded with Weapon slot (x1) 9 | -11/Scrapyard | Identified exit to Materials 9 | -11/Scrapyard | Discovered exit to Materials (range 18) 74 | -11/Scrapyard | Entered Materials 222 | -10/Materials | Identified exit to Mines 222 | -10/Materials | Discovered exit to Mines (range 17) 280 | -10/Materials | Identified exit to Materials 280 | -10/Materials | Discovered exit to Materials (range 14) 303 | -10/Materials | Build established: Hacker-Mutant 442 | -10/Materials | Discovered exit to Materials (range 11) 659 | -10/Materials | Discovered exit to Materials (range 10) 777 | -10/Materials | Reached level 2 777 | -10/Materials | Upgraded with Weapon slot (x1) 818 | -10/Materials | Identified exit to Subcaves 818 | -10/Materials | Discovered exit to Subcaves (range 15) 974 | -10/Materials | Derelicts attacked the area 1071 | -10/Materials | Entered Mines 1085 | -10/Mines | Build established: Hacker-Tank 1094 | -10/Mines | Received a Rocket Launcher from a helpful Derelict 1197 | -10/Mines | Discovered exit to Materials (range 12) 1287 | -10/Mines | Reached level 3 1294 | -10/Mines | Upgraded with Utility slot (x2) 1680 | -10/Mines | Deemed a non-threat by the Exiles lab entrance 1680 | -10/Mines | Identified exit to Exiles 1680 | -10/Mines | Discovered exit to Exiles (range 5) 1715 | -10/Mines | Discovered exit to Subcaves (range 6) 1764 | -10/Mines | Learned location of Zion (-6) 1862 | -10/Mines | Found a hidden stash of uninstalled traps 2174 | -10/Mines | Discovered exit to Materials (range 5) 2386 | -10/Mines | Entered Exiles 2417 | -10/Exiles | Identified exit to Mines 2417 | -10/Exiles | Discovered exit to Mines (range 17) 2434 | -10/Exiles | Met 8R-AWN 2464 | -10/Exiles | Met EX-HEX 2525 | -10/Exiles | Met EX-BIN 2542 | -10/Exiles | Met EX-DEC 2672 | -10/Exiles | Visited The Gauntlet 2804 | -10/Exiles | Aligned with FarCom system 2806 | -10/Exiles | Given EX-Vault access code 2850 | -10/Exiles | Opened EX-Vault 2864 | -10/Exiles | Found Trap Reconfigurator 2903 | -10/Exiles | Warned to stay clear of 0b10 Research branches 3055 | -10/Exiles | Discovered exit to Mines (range 12) 3125 | -10/Exiles | Left Exiles lab with Trap Reconfigurator 3125 | -10/Exiles | Entered Mines 3127 | -9/Mines | Reached level 4 3175 | -9/Mines | Learned Materials stockpile data 3204 | -9/Mines | Assembled infested the area 3209 | -9/Mines | Assisted by a Guerilla fighting off Assembled 3380 | -9/Mines | Found DCF Scrap (13 items) 3451 | -9/Mines | Found the Drone Emporium 3464 | -9/Mines | Found Prototype Device 3464 | -9/Mines | Identified Splice Drone Bay 3579 | -9/Mines | Learned location of Storage (-7) 3727 | -9/Mines | YI-UF0 nonchalantly dropped a Grenade Launcher on the ground 3747 | -9/Mines | Identified exit to Materials 3747 | -9/Mines | Discovered exit to Materials (range 5) 4253 | -9/Mines | Discovered exit to Materials (range 5) 4269 | -9/Mines | Entered Materials 4271 | -8/Materials | Reached level 5 4271 | -8/Materials | Reached level 6 4311 | -8/Materials | Repaired Hvy. EM Pulse Gun 4471 | -8/Materials | Reached level 7 4647 | -8/Materials | Upgraded with Utility slot (x1) 4649 | -8/Materials | Upgraded with Propulsion slot (x1) 4855 | -8/Materials | Reached level 8 4932 | -8/Materials | Garrison activated, responded to threat 4980 | -8/Materials | Upgraded with Weapon slot (x1) 5052 | -8/Materials | Identified exit to Factory 5052 | -8/Materials | Discovered exit to Factory (range 6) 5322 | -8/Materials | Reached level 9 5436 | -8/Materials | Discovered exit to Factory (range 17) 5527 | -8/Materials | Upgraded with Propulsion slot (x1) 5687 | -8/Materials | Discovered exit to Factory (range 10) 6069 | -8/Materials | Build established: Hacker-Skirmisher 6391 | -8/Materials | Build established: Hacker-Tank 6509 | -8/Materials | Reached level 10 6613 | -8/Materials | Upgraded with Power slot (x1) 7070 | -8/Materials | Entered Factory 7070 | -7/Factory | Accompanied by 1 ally 7072 | -7/Factory | Reached level 11 7218 | -7/Factory | Upgraded with Utility slot (x1) 7314 | -7/Factory | Identified exit to Factory 7314 | -7/Factory | Discovered exit to Factory (range 20) 7687 | -7/Factory | Found Powered Armor 7737 | -7/Factory | Reached level 12 7804 | -7/Factory | Upgraded with Utility slot (x1) 8098 | -7/Factory | Build established: Hacker-Gunner 8242 | -7/Factory | Identified exit to Storage 8242 | -7/Factory | Identified exit to Lower Caves 8439 | -7/Factory | Garrison activated, responded to threat 8447 | -7/Factory | Reached level 13 8584 | -7/Factory | Discovered exit to Factory (range 4) 9140 | -7/Factory | Reached level 14 9229 | -7/Factory | Fabricated Lgt. Armored Exoskeleton (x1) 9256 | -7/Factory | Fabricated Autogun (x2) 9298 | -7/Factory | Fabricated Adv. Trap Extractor (x2) 9739 | -7/Factory | Fabricated M-28 Smith (x1) 9815 | -7/Factory | Fabricated A-15 Conveyor? 10201 | -7/Factory | Fabricated I-36 Angel? 10455 | -7/Factory | Fabricated M-28 Smith (x1) 11211 | -7/Factory | Entered Storage 11211 | -7/Storage | Accompanied by 3 allies 11213 | -7/Storage | Reached level 15 11221 | -7/Storage | Met a pair of Derelict thieves 11329 | -7/Storage | Destroyed 10 combat bots 11486 | -7/Storage | Identified exit to Recycling 11527 | -7/Storage | Reached level 16 11571 | -7/Storage | Upgraded with Utility slot (x1) 11903 | -7/Storage | Found Prototype Launcher 11903 | -7/Storage | Identified Rocket Array 11947 | -7/Storage | Used back door to open Recycling access 12163 | -7/Storage | Discovered exit to Factory (range 19) 12490 | -7/Storage | Build established: Trapper-Gunner 12992 | -7/Storage | Entered Recycling 13265 | -7/Recycling | Identified exit to Factory 13265 | -7/Recycling | Discovered exit to Factory (range 5) 13626 | -7/Recycling | Reached level 17 13790 | -7/Recycling | Scanned before Scraplab entrance 14050 | -7/Recycling | Entered Scraplab 14061 | -7/Recycling | Identified exit to Scraptown 14061 | -7/Recycling | Discovered exit to Scraptown (range 3) 14066 | -7/Recycling | Entered Scraptown 14471 | -7/Scraptown | Discovered exit to Factory (range 5) 14605 | -7/Scraptown | Visited Assassins FH 14635 | -7/Scraptown | Visited Supply Room 14659 | -7/Scraptown | Visited TADAMA 14677 | -7/Scraptown | Visited Cyclists 14765 | -7/Scraptown | Visited IN-MT5's Study 14787 | -7/Scraptown | Visited Comm Corps 14871 | -7/Scraptown | Heard Great Nut preacher, LISTEN AND RECITE! 15108 | -7/Scraptown | Turned away by UFD registrar 15350 | -7/Scraptown | Entered Factory 15352 | -5/Factory | Reached level 18 15476 | -5/Factory | Build established: Trapper-Tank 15530 | -5/Factory | Identified exit to Factory 15530 | -5/Factory | Discovered exit to Factory (range 13) 15920 | -5/Factory | Fabricated Adv. Shield Generator (x2) 16221 | -5/Factory | Reached level 19 16229 | -5/Factory | Upgraded with Weapon slot (x1) 16280 | -5/Factory | Upgraded with Propulsion slot (x1) 16515 | -5/Factory | Cargo convoy interrupted 16526 | -5/Factory | P-70 Sage assimilated allied G-50 Soldier 16531 | -5/Factory | Garrison activated, responded to threat 16537 | -5/Factory | Reached level 20 16567 | -5/Factory | Destroyed 7 combat bots 16649 | -5/Factory | Found PL-3XN's Ring of Power 16750 | -5/Factory | Identified exit to Extension 16750 | -5/Factory | Discovered exit to Extension (range 10) 16761 | -5/Factory | Build established: Hacker-Tank 16850 | -5/Factory | First assault squad dispatched 16942 | -5/Factory | Identified exit to Upper Caves 16990 | -5/Factory | Reached level 21 17018 | -5/Factory | Destroyed 7 combat bots 17565 | -5/Factory | Fabricated Exp. Biometal Heavy Treads (x1) 17624 | -5/Factory | Fabricated Adv. Plasma Cannon (x2) 17722 | -5/Factory | Fabricated Cld. Plasma Cannon (x1) 17802 | -5/Factory | Fabricated Cld. Plasma Cannon (x1) 18153 | -5/Factory | Fabricated Cld. Plasma Cannon? 18174 | -5/Factory | Reached level 22 18314 | -5/Factory | Upgraded with Propulsion slot (x1) 18314 | -5/Factory | Upgraded with Utility slot (x1) 18513 | -5/Factory | Sucked down chute 18513 | -5/Factory | Entered Waste 18514 | -5/Waste | Joined by Warlord forces that had cleared the area 18593 | -5/Waste | A Compactor rumbled back to life 18593 | -5/Waste | Destroyed C-40 Crusher 18694 | -5/Waste | Identified exit to Factory 18694 | -5/Waste | Discovered exit to Factory (range 12) 19004 | -5/Waste | Entered Factory 19004 | -5/Factory | Accompanied by 20 allies 19122 | -5/Factory | Fabricated Exp. Biometal Heavy Treads (x1) 19208 | -5/Factory | Fabricated Cld. Plasma Cannon (x1) 19278 | -5/Factory | Discovered exit to Upper Caves (range 19) 19307 | -5/Factory | Garrison activated, responded to threat 19541 | -5/Factory | Reached level 23 19661 | -5/Factory | Allied Derelicts emerged from ambush trap array 19680 | -5/Factory | Cargo convoy interrupted 19731 | -5/Factory | Lost 4 allies 19923 | -5/Factory | Fabricated Y-64 Sentinel? 20031 | -5/Factory | Entered Extension 20031 | -5/Extension | Accompanied by 17 allies 20134 | -5/Extension | Spotted B-75 Beast 20139 | -5/Extension | Allies destroyed B-75 Beast 20144 | -5/Extension | Spotted B-75 Beast 20162 | -5/Extension | Reached level 24 20162 | -5/Extension | Destroyed B-75 Beast 20181 | -5/Extension | Lost 3 allies 20227 | -5/Extension | Rescued a captive Derelict 20238 | -5/Extension | Rescued a captive Derelict 20239 | -5/Extension | Rescued a captive Derelict 20247 | -5/Extension | Upgraded with Utility slot (x1) 20427 | -5/Extension | Rescued A7 20457 | -5/Extension | Rescued a captive Derelict 20457 | -5/Extension | Rescued a captive Derelict 20631 | -5/Extension | First assault squad dispatched 20921 | -5/Extension | Energy Cycler disabled 21010 | -5/Extension | Discovered exit to Factory (range 10) 21011 | -5/Extension | Identified exit to Cetus 21011 | -5/Extension | Discovered exit to Cetus (range 6) 21086 | -5/Extension | Entered Cetus 21086 | -5/Cetus | Accompanied by 19 allies (A7) 21091 | -5/Cetus | Acquired a Cetus Manufacturing Module code from A7 21105 | -5/Cetus | Spotted Cetus Guard 21105 | -5/Cetus | Spotted Cetus Guard 21107 | -5/Cetus | Spotted Cetus Guard 21107 | -5/Cetus | Spotted Cetus Guard 21114 | -5/Cetus | Allies destroyed Cetus Guard 21122 | -5/Cetus | Allies destroyed Cetus Guard 21123 | -5/Cetus | Allies destroyed Cetus Guard 21123 | -5/Cetus | Destroyed Cetus Guard 21238 | -5/Cetus | Identified exit to Archives 21238 | -5/Cetus | Discovered exit to Archives (range 20) 21268 | -5/Cetus | Spotted Cetus Guard 21269 | -5/Cetus | Spotted Cetus Guard 21269 | -5/Cetus | Spotted Cetus Guard 21269 | -5/Cetus | Spotted Cetus Guard 21270 | -5/Cetus | Destroyed Cetus Guard 21274 | -5/Cetus | Allies destroyed Cetus Guard 21277 | -5/Cetus | Discovered exit to Factory (range 20) 21279 | -5/Cetus | Destroyed Cetus Guard 21282 | -5/Cetus | Destroyed Cetus Guard 21297 | -5/Cetus | Met Revision 17 21357 | -5/Cetus | Started Cetus Manufacturing Module 21366 | -5/Cetus | Escorted A7 to Cetus Mainframe 21382 | -5/Cetus | Manufactured an Enhanced Grunt 21407 | -5/Cetus | Manufactured an Enhanced Grunt 21432 | -5/Cetus | Manufactured an Enhanced Grunt 21457 | -5/Cetus | Manufactured an Enhanced Grunt 21482 | -5/Cetus | Manufactured an Enhanced Grunt 21641 | -5/Cetus | Entered Archives 21641 | -5/Archives | Accompanied by 21 allies (A7) 21646 | -5/Archives | Received a hacking code to weaken MAIN.C 21684 | -5/Archives | Found Prototype Device 21684 | -5/Archives | Identified Exp. Thermal Shield 21689 | -5/Archives | Lost 3 allies 21717 | -5/Archives | Identified exit to Hub_04(d) 21717 | -5/Archives | Discovered exit to Hub_04(d) (range 18) 22187 | -5/Archives | Entered Hub_04(d) 22187 | -5/Hub_04(d) | Accompanied by 17 allies 22351 | -5/Hub_04(d) | Network Hub disabled 22377 | -5/Hub_04(d) | Murdered 5 allies 22384 | -5/Hub_04(d) | Lost 4 allies 22408 | -5/Hub_04(d) | Discovered exit to Factory (range 8) 22457 | -5/Hub_04(d) | Spotted B-75 Beast 22475 | -5/Hub_04(d) | Allies destroyed B-75 Beast 22563 | -5/Hub_04(d) | Reached level 25 22612 | -5/Hub_04(d) | Discovered exit to Factory (range 5) 22662 | -5/Hub_04(d) | Spotted Lightning 22662 | -5/Hub_04(d) | Spotted Lightning 22662 | -5/Hub_04(d) | Spotted Lightning 22665 | -5/Hub_04(d) | Network Hub disabled 22668 | -5/Hub_04(d) | Destroyed Lightning 22676 | -5/Hub_04(d) | Destroyed Lightning 22682 | -5/Hub_04(d) | Destroyed Lightning 22698 | -5/Hub_04(d) | Lost 4 allies 22737 | -5/Hub_04(d) | Disrupted transfer network 22739 | -5/Hub_04(d) | Discovered exit to Factory (range 11) 22750 | -5/Hub_04(d) | Spotted Lightning 22759 | -5/Hub_04(d) | Spotted Lightning 22759 | -5/Hub_04(d) | Spotted Lightning 22764 | -5/Hub_04(d) | Destroyed Lightning 22776 | -5/Hub_04(d) | Destroyed Lightning 22776 | -5/Hub_04(d) | Network Hub disabled 22781 | -5/Hub_04(d) | Destroyed Lightning 22787 | -5/Hub_04(d) | First assault squad dispatched 22802 | -5/Hub_04(d) | Destroyed 8 combat bots 22936 | -5/Hub_04(d) | Entered Factory 22938 | -4/Factory | Upgraded with Power slot (x1) 23058 | -4/Factory | Identified exit to Upper Caves 23058 | -4/Factory | Identified exit to Armory 23383 | -4/Factory | Reached level 26 23436 | -4/Factory | First assault squad dispatched 23526 | -4/Factory | Fabricated Imp. Powered Armor? 24044 | -4/Factory | Identified exit to Research 24044 | -4/Factory | Discovered exit to Research (range 13) 24054 | -4/Factory | Upgraded with Weapon slot (x1) 24168 | -4/Factory | Fabricated Cld. Plasma Cannon? 24223 | -4/Factory | Fabricated Hyb. Antimatter Reactor (x2) 24266 | -4/Factory | Fabricated Imp. Armor Integrity Analyzer (x2) 24384 | -4/Factory | Destroyed 7 combat bots 24496 | -4/Factory | Build established: Machinist-Executioner 24731 | -4/Factory | Fabricated A-15 Conveyor (x1) 24807 | -4/Factory | Build established: Fabricator-Executioner 25076 | -4/Factory | Reached level 27 25246 | -4/Factory | Cargo convoy interrupted 25247 | -4/Factory | Build established: Machinist-Executioner 25295 | -4/Factory | Found Prototype Processor 25295 | -4/Factory | Identified Spectral Analyzer 25299 | -4/Factory | Found Prototype Launcher 25299 | -4/Factory | Identified Enh. Gamma Bomb Array 25306 | -4/Factory | Found Spectral Analyzer 25401 | -4/Factory | Found Prototype Launcher 25401 | -4/Factory | Identified Point Singularity Launcher 25420 | -4/Factory | Found Spectral Analyzer 25565 | -4/Factory | Entered Upper Caves 25566 | -4/Upper Caves | Encountered a Warlord checkpoint 25687 | -4/Upper Caves | Attracted the attention of an 0b10 outpost 25821 | -4/Upper Caves | Attracted the attention of an 0b10 checkpoint 25855 | -4/Upper Caves | Spotted B-86 Titan 25871 | -4/Upper Caves | Allies destroyed B-86 Titan 26137 | -4/Upper Caves | Identified exit to Upper Caves 26137 | -4/Upper Caves | Discovered exit to Upper Caves (range 5) 26388 | -4/Upper Caves | Learned location of Testing (-3) 26806 | -4/Upper Caves | Entered another Upper Caves area 26806 | -4/Upper Caves | Accompanied by 1 ally 26833 | -4/Upper Caves | Discovered exit to Research (range 6) 27106 | -4/Upper Caves | Learned 4 Research zone layouts 27368 | -4/Upper Caves | Identified exit to Warlord 27368 | -4/Upper Caves | Discovered exit to Warlord (range 13) 27483 | -4/Upper Caves | Entered Warlord 27483 | -4/Warlord | Accompanied by 1 ally 27531 | -4/Warlord | System corruption cleaned by Quarantine Array 27643 | -4/Warlord | Received a Watcher feed algorithm from an ecstatic Tinkerer 27795 | -4/Warlord | Met Warlord 27820 | -4/Warlord | Warlord's base attacked by MAIN.C 28046 | -4/Warlord | Destroyed 8 combat bots 28170 | -4/Warlord | Warlord forces counterattacked 28177 | -4/Warlord | Spotted Executioner 28185 | -4/Warlord | Destroyed Executioner 28223 | -4/Warlord | Lost 6 allies 28240 | -4/Warlord | Spotted Executioner 28250 | -4/Warlord | Reached level 28 28259 | -4/Warlord | Destroyed Executioner 28289 | -4/Warlord | Destroyed 9 combat bots 28294 | -4/Warlord | Identified exit to Proximity Caves 28294 | -4/Warlord | Discovered exit to Proximity Caves (range 16) 28320 | -4/Warlord | Spotted Striker 28320 | -4/Warlord | Spotted Striker 28338 | -4/Warlord | Destroyed Striker 28365 | -4/Warlord | Destroyed 8 combat bots 28368 | -4/Warlord | Lost 8 allies 28495 | -4/Warlord | Warlord base infiltrated, sounded retreat 28596 | -4/Warlord | Found Prototype Reactor 28596 | -4/Warlord | Identified Vortex Chain Reactor 28600 | -4/Warlord | Found Prototype Device 28601 | -4/Warlord | Identified Exp. Cloaking Device 28895 | -4/Warlord | Spotted Executioner 28896 | -4/Warlord | Spotted Executioner 28897 | -4/Warlord | Spotted Striker 28903 | -4/Warlord | Destroyed Striker 28906 | -4/Warlord | Destroyed Executioner 28948 | -4/Warlord | Destroyed 12 combat bots 28958 | -4/Warlord | Destroyed Executioner 28961 | -4/Warlord | Spotted Striker 28964 | -4/Warlord | Destroyed Striker 28998 | -4/Warlord | Spotted Striker 29006 | -4/Warlord | Destroyed Striker 29026 | -4/Warlord | Spotted Executioner 29027 | -4/Warlord | Spotted Executioner 29029 | -4/Warlord | Spotted Striker 29029 | -4/Warlord | Destroyed Striker 29032 | -4/Warlord | Destroyed Executioner 29032 | -4/Warlord | Destroyed Executioner 29058 | -4/Warlord | Entered Proximity Caves 29064 | -3/Proximity Caves | Destroyed 22 combat bots 29392 | -3/Proximity Caves | Spotted B-86 Titan 29393 | -3/Proximity Caves | Reached level 29 29393 | -3/Proximity Caves | Destroyed B-86 Titan 29953 | -3/Proximity Caves | Discovered exit to Research (range 18) 30020 | -3/Proximity Caves | Entered Research 30051 | -3/Research | Identified exit to Testing 30051 | -3/Research | Discovered exit to Testing (range 17) 30220 | -3/Research | Revision forces began assault on 0b10 30281 | -3/Research | Met up with Revision 17++ 30321 | -3/Research | Build established: Hacker-Executioner 30559 | -3/Research | Identified exit to Research 30559 | -3/Research | Discovered exit to Research (range 17) 30704 | -3/Research | Fabricated Heavy Servo Lattice (x2) 30720 | -3/Research | Research terminal network offline 30765 | -3/Research | Fabricated Cld. Phase Cannon (x1) 30812 | -3/Research | Fabricated Cld. Phase Cannon (x1) 30834 | -3/Research | Spotted Striker 30899 | -3/Research | Fabricated Cld. Phase Cannon? 30970 | -3/Research | Entered another Research area 30970 | -2/Research | Warlord forces began assault on 0b10 30972 | -2/Research | Reached level 30 31018 | -2/Research | Build established: Machinist-Executioner 31043 | -2/Research | Spotted B-90 Cyclops 31053 | -2/Research | Destroyed B-90 Cyclops 31075 | -2/Research | Reached level 31 31075 | -2/Research | Met up with Warlord 31080 | -2/Research | Research machine network offline 31110 | -2/Research | Fabricated Cld. Phase Cannon? 31118 | -2/Research | Borebot progress halted 31515 | -2/Research | Identified exit to Quarantine 31515 | -2/Research | Discovered exit to Quarantine (range 20) 31533 | -2/Research | Spotted Executioner 31564 | -2/Research | Spotted Executioner 31567 | -2/Research | Borebot progress halted 31568 | -2/Research | Destroyed Executioner 31615 | -2/Research | Destroyed Executioner 31615 | -2/Research | Borebot progress halted 31641 | -2/Research | Identified exit to Access 31641 | -2/Research | Discovered exit to Access (range 19) 31651 | -2/Research | Destroyed 9 combat bots 31858 | -2/Research | Entered Access 31858 | -1/Access | Accompanied by 3 allies 31860 | -1/Access | Reached level 32 31860 | -1/Access | Reached level 33 31995 | -1/Access | Fabricated Cld. Phase Cannon? 32202 | -1/Access | Fabricated Cld. Phase Cannon (x1) 32257 | -1/Access | Fabricated Adv. Particle Charger (x2) 32290 | -1/Access | Upgraded with Utility slot (x1) 32467 | -1/Access | Reached level 34 32492 | -1/Access | Identified exit to Surface 32492 | -1/Access | Discovered exit to Surface (range 20) 32562 | -1/Access | Destroyed 14 combat bots 32676 | *** | Escaped! Last Messages --------------- 32576_ R-10 Processor collects Imp. Kinecellerator. 32578_ Dropped Hyb. Antimatter Reactor. 32579_ Acquired Lgt. Quantum Reactor. 32579_ R-10 Processor collects Adv. Remote Datajack. 32582_ Destroyed Wheel. 32582_ K-01 Serf destroyed. 32586_ Dropped Lgt. Quantum Reactor. 32587_ Acquired Hyb. Antimatter Reactor. 32588_ K-01 Serf collects debris. 32589_ U-05 Engineer builds a Door. 32590_ Acquired 20 matter. 32591_ K-01 Serf collects debris. 32594_ R-10 Processor collects Structural Scanner. 32597_ R-10 Processor collects Sml. Battery. 32600_ R-10 Processor collects Gamma Rifle. 32605_ U-05 Engineer builds a Wall. 32622_ Dismantling Sealed Barrier with Imp. Plasma Cutter. 32652_ Sealed Barrier dismantled. 32658_ Dismantling Main Access Shell with Imp. Plasma Cutter. 32668_ Main Access Shell dismantled. Map ----- +----------------------------------------------------+ | #"####"#### #####################?##??##??????? | | #####################?##??#?#?????? | | | % #########################?###?????? | | ########### !% ? ? ????? | | ############ ############# ??? ????? | | ! # ########################## ? ##???? | | #* ########################## ##???? | | # ########################## ??#??? | | #=!########################## #????? | | "" #%%########################## #????? | | "" *#%%########################## # ??? | | """" [+![![!%[| # ??? | | """""" *#[ ===[ + ??? | | "" # ####### ""##### # ??? | | "" =#![####### ""##### ## ??? | | * %#[!####### ""##### ## ??? | | #%[####### T##### ####??? | | #!h####### ""##### ####??? | | ############ ####### ""##### #####?? | | ############ ####### ""##### # ?? | | ########### h #####"""""" """#### # ??? | | !% ###### ##### # ??? | | %! ###### ##### # ??? | | +########## %] ###### """ ##### # ??? | | #### ####### " " ##### +? ?? | | #### ####### " @" " ##### # "??? | | #### ####### " "" " ##### # "??? | | ? #### ####### " " ##### ####??? | | ? #### ####### """""" ##### ##???? | | #### ####### ##### ##???? | | ? #### #######""""""""""##### ##???? | | ???? ##### #######""""""""""##### #????? | | ??? ? ##### #######""""""""""##########+###????? | | ?????" ???### #######""""""""""###?## ?????? | | ??????? #??#? ####### ###### ??????? | | ???????????## ####### BB BB ###### ? ??????? | | ????????????? ####### BB BB ###### ? ?????? | | ????????????? ?###### ###### ? ?????? | | ???????????## ?###?## #####? ??????????? | | ????????????#????#?#? ####?# ? ????????? | | ?????????????????#### ? ##?###?? ?????????? | | ?????????????????#?#?#?? ######?#?????????????? | | ?????????????????????#?#? ? # ?? ? ?????????????? | | ??????????????????????##? ? ???? ?? ?????????????? | | ??????????????????????? ? ???????????????????????? | | ?????????????????????????????????????????????????? | | ?????????????????????????????????????????????????? | | ?????????????????????????????????????????????????? | | ?????????????????????????????????????????????????? | | ?????????????????????????????????????????????????? | +----------------------------------------------------+ Best States ------------- Heat Dissipation 175 Energy Generation 80 Energy Capacity 1700 Matter Stores 550 Matter Capacity 550 Sight Range 20 Terrain Scan Range 20 Terrain Scan Density 810 Cloak Strength 4 EM Shielding 4 Corruption Containment 12 Armor Coverage 1250 Resistance: KI 55 Resistance: TH 65 Resistance: EX 45 Resistance: EM 35 Resistance: I 35 Resistance: S 35 Resistance: P 35 Weapon Cycling 30 Phase Shifting 10 Evasion (%) 60 Targeting Accuracy 5 Armor Integrity Analysis 40 Recoil Reduction 6 Matter Filtering 30 Energy Filtering 30 Particle Charging 37 Kinecelleration 30 Offensive Hacking 40 Defensive Hacking 10 Authchip Count 4 Trap Extractor Capacity 8 Item Schematics ----------------- Structural Scanner | -10/Materials | Hacked Trap Scanner | -8/Materials | Hacked Trap Extractor | -8/Materials | Hacked Aerolev Unit | -8/Materials | Scanalyzed Cld. Ion Engine | -8/Materials | Hacked Plasma Cutter | -7/Factory | Scanalyzed Adv. Trap Extractor | -7/Factory | Hacked Imp. Kinecellerator | -7/Factory | Hacked Lgt. Armored Exoskeleton | -7/Factory | Hacked Hvy. Missile Launcher | -7/Factory | Hacked Hyb. Deuterium Engine | -7/Factory | Hacked Adv. Plasma Cannon | -7/Factory | Hacked Autogun | -7/Factory | Scanalyzed Matter Filter | -7/Factory | Hacked Adv. Cooling System | -7/Storage | Hacked Adv. Shield Generator | -7/Recycling | Hacked Corruption Screen | -7/Recycling | Hacked Coil Gun | -7/Recycling | Hacked Gauss Rifle | -7/Recycling | Hacked Cld. Plasma Cannon | -5/Factory | Scanalyzed Enh. Autogun | -5/Factory | Scanalyzed Exp. Biometal Heavy Treads | -5/Factory | Scanalyzed Point Defense System | -5/Factory | Extracted Fusion Compressor | -5/Factory | Extracted Phase Shifter | -5/Factory | Extracted Adv. Terrain Scan Processor | -5/Factory | Extracted Biomechanical Wings | -5/Factory | Extracted Angular Momentum Engine | -5/Factory | Extracted Imp. Coolant Injector | -5/Factory | Extracted Graphene Brace | -5/Hub_04(d) | Hacked Imp. Armor Integrity Analyzer | -4/Factory | Hacked Imp. Powered Armor | -4/Factory | Hacked Adv. Trap Scanner | -4/Factory | Hacked Adv. Particle Charger | -4/Factory | Hacked Hyb. Fission Core | -4/Factory | Hacked Hyb. Antimatter Reactor | -4/Factory | Hacked Exp. Weapon Shielding | -4/Factory | Hacked Adv. Cloaking Device | -4/Factory | Hacked Heavy Servo Lattice | -3/Research | Hacked Cld. Phase Cannon | -3/Research | Hacked Robot Schematics ------------------ M-28 Smith | -8/Materials | Hacked A-02 Transporter | -8/Materials | Hacked A-15 Conveyor | -7/Factory | Hacked G-47 Trooper | -7/Factory | Hacked I-36 Angel | -7/Factory | Hacked L-41 Fighter | -7/Recycling | Hacked M-36 Artificer | -3/Research | Hacked Fabricated ------------ Lgt. Armored Exoskeleton | x1 | -7/Factory Autogun | x2 | -7/Factory Adv. Trap Extractor | x2 | -7/Factory M-28 Smith | x1 | -7/Factory A-15 Conveyor | x1 | -7/Factory I-36 Angel | x1 | -7/Factory M-28 Smith | x1 | -7/Factory Adv. Shield Generator | x2 | -5/Factory Exp. Biometal Heavy Treads | x1 | -5/Factory Adv. Plasma Cannon | x2 | -5/Factory Cld. Plasma Cannon | x1 | -5/Factory Cld. Plasma Cannon | x1 | -5/Factory Cld. Plasma Cannon | x1 | -5/Factory Exp. Biometal Heavy Treads | x1 | -5/Factory Cld. Plasma Cannon | x1 | -5/Factory Y-64 Sentinel | x2 | -5/Factory | Preloaded Imp. Powered Armor | x1 | -4/Factory Cld. Plasma Cannon | x1 | -4/Factory Hyb. Antimatter Reactor | x2 | -4/Factory Imp. Armor Integrity Analyzer | x2 | -4/Factory A-15 Conveyor | x1 | -4/Factory | Authchip Heavy Servo Lattice | x2 | -3/Research Cld. Phase Cannon | x1 | -3/Research Cld. Phase Cannon | x1 | -3/Research Cld. Phase Cannon | x1 | -3/Research Cld. Phase Cannon | x1 | -2/Research Cld. Phase Cannon | x1 | -1/Access Cld. Phase Cannon | x1 | -1/Access Adv. Particle Charger | x2 | -1/Access Alien Tech Used ----------------- None Achievements -------------- None Challenges ------------ None RPGLIKE | -11 -10 -10 -10 -9 -8 -7 -7 -7 -7 -5 -5 -5 -5 -5 -5 -5 -4 -4 -4 -4 -3 -3 -2 -1 --------- Run | Yrd Mat Min Exi Min Mat Fac Sto Rec Scr Fac Was Fac Ext Cet Arc Hub Fac Upp Upp War Pro Res Res Acc Levels Raised 33 | . 1 1 . 1 6 4 2 1 . 5 . 1 1 . . 1 2 . . 1 1 . 2 3 XP Earned 55951 | 6000 2205 1700 350 1099 8316 7185 2613 535 118 7482 67 2395 862 359 169 942 2932 338 121 1742 646 962 3103 3710 XP Spent 53085 | 6000 800 1900 . 1000 8930 6525 2300 . 1750 8050 . . 2900 . . 810 4000 . . 1520 . 1400 2000 3200 Upgrades 84 | 19 1 2 . 1 23 6 1 . 1 9 . . 1 . . 3 5 . . 8 . 2 1 1 Power Slot 2 | . . . . . 1 . . . . . . . . . . . 1 . . . . . . . Propulsion Slot 5 | 1 . . . . 2 . . . . 2 . . . . . . . . . . . . . . Utility Slot 10 | 1 . 2 . . 1 2 1 . . 1 . . 1 . . . . . . . . . . 1 Weapon Slot 5 | 1 1 . . . 1 . . . . 1 . . . . . . 1 . . . . . . . Core Integrity 8 | . . . . . 8 . . . . . . . . . . . . . . . . . . . Heat Dissipation 13 | 1 . . . . 4 . . . . 5 . . . . . 3 . . . . . . . . Energy Generation 1 | 1 . . . . . . . . . . . . . . . . . . . . . . . . Matter Storage 2 | 1 . . . . . 1 . . . . . . . . . . . . . . . . . . Mass Support 1 | . . . . . 1 . . . . . . . . . . . . . . . . . . . Inventory Capacity 8 | 3 . . . 1 1 1 . . 1 . . . . . . . . . . . . . 1 . Sight Range 4 | 2 . . . . 2 . . . . . . . . . . . . . . . . . . . Terrain Scan Density 8 | . . . . . . . . . . . . . . . . . . . . 8 . . . . Hack Attack % 4 | . . . . . 2 . . . . . . . . . . . . . . . . 2 . . Hack Defense % 2 | 2 . . . . . . . . . . . . . . . . . . . . . . . . KI Resistance % 3 | 2 . . . . . 1 . . . . . . . . . . . . . . . . . . TH Resistance % 3 | 2 . . . . . 1 . . . . . . . . . . . . . . . . . . EX Resistance % 2 | 2 . . . . . . . . . . . . . . . . . . . . . . . . TH Damage % 3 | . . . . . . . . . . . . . . . . . 3 . . . . . . . Protomatter Created 11530 | . 382 178 . 13 716 769 1048 . . 1127 96 248 266 134 . 689 1798 216 95 1400 512 305 418 1120 Integrity Restored 7018 | . 180 118 . 39 724 794 201 . . 1234 31 46 88 238 17 677 750 64 13 555 810 10 155 274 Core 4507 | . 147 77 . 39 434 458 116 . . 752 2 38 56 40 8 474 513 39 8 469 484 5 89 259 Parts 2511 | . 33 41 . . 290 336 85 . . 482 29 8 32 198 9 203 237 25 5 86 326 5 66 15 Protomatter Decayed 15797 | . 175 130 . 79 443 446 827 . . 609 84 673 495 168 246 506 1512 188 89 2365 234 1994 3458 1076 Game ------ Seed SeismicCobblerMagmablaster Manual? 0 Play Time 06:59:44 Cumulative 245.0 hours Start 2024.08.09 @ 08:13:24 End 2024.08.11 @ 09:32:23 Sessions 9 Manual Loads 0 Difficulty Explorer Special Mode Winter2019/RPGLIKE Game No. 68 Rogue 62 Adventurer 4 Explorer 2 Win Type 0 Total 6 Types 2/0/1/2/0/0/0/0/1 Lore% 42 Gallery% 66 Achievement% 44 Wizard Run 0 Options --------- Layout 0 ASCII 0 Keyboard 0 Movement Mouse Keybinds 0 Fullscreen 1 Font 24/Smallcaps Map View 76x50 Zoom Use 0% Tactical HUD 1 Map Filters NONE Filters NONE Steam X RUN: fb0fe72b-0a27-43ee-bec2-6f4413582e82